bitfinex/quotes_SOLUSD_20241231
["timestamp","ask_amount","ask_price","bid_price","bid_amount"]
[1735666622872,40.79846898,195.87,195.76,1.5895]
[1735666622873,40.79846898,195.85,195.78,40.79846898]
[1735666623036,40.79846898,195.84,195.77,40.79846898]
[1735666623353,40.79846898,195.81,195.75,7.68942262]
[1735666623561,40.79846898,195.85,195.75,7.68942262]
[1735666623871,40.79846898,195.89,195.81,40.79846898]
[1735666624040,40.79846898,195.88,195.8,40.79846898]
[1735666624238,31.27801325,195.97,195.8,40.79846898]
[1735666624239,40.79846898,195.87,195.8,40.79846898]
[1735666624436,40.79846898,195.88,195.8,40.79846898]
[1735666624635,23.776884,195.97,195.79,40.79846898]
[1735666624636,40.79846898,195.86,195.79,40.79846898]
[1735666625053,40.79846898,195.86,195.73,6.5613]
[1735666625054,40.79846898,195.86,195.78,40.79846898]
[1735666625544,40.79846898,195.92,195.84,40.79846898]
[1735666625742,40.79846898,195.95,195.88,40.79846898]
[1735666625938,40.79846898,195.97,195.89,40.79846898]
[1735666626140,40.79846898,195.99,195.91,40.79846898]
[1735666626440,40.79846898,195.97,195.9,40.79846898]
[1735666626752,40.79846898,195.96,195.89,40.79846898]
[1735666627146,40.79846898,195.97,195.9,40.79846898]
[1735666627351,40.79846898,196.0,195.93,40.79846898]
[1735666627550,40.79846898,195.99,195.91,40.79846898]
[1735666627843,40.79846898,195.95,195.88,40.79846898]
[1735666628162,40.79846898,195.94,195.86,40.79846898]
[1735666628361,40.79846898,195.94,195.87,40.79846898]
[1735666628576,40.79846898,195.92,195.85,40.79846898]
[1735666628776,40.79846898,195.9,195.83,42.38796898]
[1735666629079,40.79846898,195.91,195.84,40.79846898]
[1735666629280,40.79846898,195.93,195.85,40.79846898]
[1735666629460,40.79846898,195.93,195.86,40.79846898]
[1735666629791,40.79846898,195.91,195.83,42.38796898]
[1735666630291,40.79846898,195.9,195.83,42.38796898]
[1735666630859,40.79846898,195.9,195.81,12.7668]
[1735666631169,40.79846898,195.88,195.81,53.56526898]
[1735666631378,40.79846898,195.9,195.81,53.56526898]
[1735666631561,40.79846898,195.9,195.83,40.79846898]
[1735666632570,40.79846898,195.88,195.81,40.79846898]
[1735666632768,23.776884,195.95,195.77,40.79846898]
[1735666632769,40.79846898,195.84,195.77,40.79846898]
[1735666632969,40.79846898,195.82,195.75,40.79846898]
[1735666633456,40.79846898,195.84,195.75,40.79846898]
[1735666633659,40.79846898,195.86,195.78,40.79846898]
[1735666633906,40.79846898,195.84,195.76,40.79846898]
[1735666634191,40.79846898,195.82,195.74,40.79846898]
[1735666634864,1.28026284,195.85,195.72,40.79846898]
[1735666634865,40.79846898,195.8,195.72,40.79846898]
[1735666635062,40.79846898,195.81,195.73,40.79846898]
[1735666635283,40.79846898,195.82,195.75,40.79846898]
[1735666635575,12.06053127,195.89,195.72,12.7733]
[1735666635576,40.79846898,195.81,195.73,40.79846898]
[1735666635773,40.79846898,195.81,195.74,40.79846898]
[1735666636165,40.79846898,195.78,195.71,48.47146898]
[1735666636407,40.79846898,195.76,195.68,40.79846898]
[1735666636583,40.79846898,195.73,195.66,40.79846898]
[1735666636893,40.79846898,195.73,195.64,7.673]
[1735666636894,40.79846898,195.75,195.68,40.79846898]
[1735666637075,40.79846898,195.78,195.71,40.79846898]
[1735666637273,40.79846898,195.79,195.71,40.79846898]
[1735666638095,1.28057594,195.78,195.71,40.79846898]
[1735666638296,1.28057594,195.78,195.76,40.79846898]
[1735666638494,1.28057594,195.78,195.77,40.79846898]
[1735666638703,40.79846898,195.83,195.75,53.56966898]
[1735666638878,40.79846898,195.84,195.77,40.79846898]
[1735666639202,3.32881702,195.82,195.75,12.7712]
[1735666639885,20.0,195.91,195.72,12.7732]
[1735666639886,3.32881702,195.81,195.72,12.7732]
[1735666640390,40.79846898,195.8,195.72,40.79846898]
[1735666640590,44.127286,195.81,195.74,40.79846898]
[1735666640778,3.32881702,195.8,195.73,40.79846898]
[1735666641103,44.127286,195.8,195.72,40.79846898]
[1735666641405,1.28031424,195.79,195.72,40.79846898]
[1735666641700,1.28031424,195.79,195.76,40.79846898]
[1735666641900,1.28031424,195.79,195.78,40.79846898]
[1735666642282,5.0,195.97,195.7,45.79846898]
[1735666642283,40.79846898,195.84,195.76,40.79846898]
[1735666642491,40.79846898,195.83,195.75,40.79846898]
[1735666642985,3.32878988,195.82,195.75,40.79846898]
[1735666643592,1.2803038,195.82,195.79,40.79846898]
[1735666643799,1.2803038,195.81,195.76,40.79846898]
[1735666643973,1.2803038,195.81,195.75,40.79846898]
[1735666644173,40.79846898,195.8,195.72,40.79846898]
[1735666644373,40.79846898,195.79,195.71,40.79846898]
[1735666644586,40.79846898,195.78,195.71,40.79846898]
[1735666644791,40.79846898,195.78,195.7,40.79846898]
[1735666644997,40.79846898,195.77,195.69,40.79846898]
[1735666645209,40.79846898,195.74,195.64,20.4509]
[1735666645412,40.79846898,195.74,195.66,40.79846898]
[1735666645575,40.79846898,195.74,195.67,40.79846898]
[1735666645978,40.79846898,195.75,195.68,40.79846898]
[1735666646207,40.79846898,195.77,195.69,40.79846898]
[1735666646700,40.79846898,195.72,195.65,40.79846898]
[1735666647179,40.79846898,195.7,195.63,40.79846898]
[1735666647382,40.79846898,195.66,195.59,40.79846898]
[1735666647878,40.79846898,195.7,195.63,40.79846898]
[1735666648197,40.79846898,195.78,195.69,40.79846898]
[1735666648520,40.79846898,195.78,195.7,40.79846898]
[1735666648680,40.79846898,195.77,195.7,40.79846898]
[1735666648983,40.79846898,195.77,195.62,12.7798]
[1735666648984,40.79846898,195.8,195.73,40.79846898]
[1735666649182,40.79846898,195.81,195.73,40.79846898]
[1735666649390,28.88861091,195.86,195.7,1.5929]
[1735666649614,40.79846898,195.73,195.66,40.79846898]
[1735666649827,40.79846898,195.73,195.64,1.5929]
[1735666649982,40.79846898,195.74,195.66,40.79846898]
[1735666650183,40.79846898,195.8,195.64,1.5929]
[1735666650184,40.79846898,195.75,195.68,40.79846898]
[1735666650492,40.79846898,195.78,195.71,40.79846898]
[1735666650700,40.79846898,195.81,195.65,12.7779]
[1735666650874,40.79846898,195.82,195.74,40.79846898]
[1735666651097,40.79846898,195.81,195.74,40.79846898]
[1735666651289,40.79846898,195.84,195.75,40.79846898]
[1735666651619,40.79846898,195.85,195.78,40.79846898]
[1735666651921,40.79846898,195.84,195.76,40.79846898]
[1735666652214,40.79846898,195.82,195.74,40.79846898]
[1735666652798,40.79846898,195.8,195.72,40.79846898]
[1735666653026,40.79846898,195.77,195.69,40.79846898]
[1735666653236,40.79846898,195.73,195.65,46.83256898]
[1735666653733,40.79846898,195.76,195.68,40.79846898]
[1735666654027,40.79846898,195.79,195.71,40.79846898]
[1735666654237,40.79846898,195.79,195.72,40.79846898]
[1735666654850,40.79846898,195.82,195.74,40.79846898]
[1735666654996,40.79846898,195.82,195.66,12.7772]
[1735666654997,40.79846898,195.85,195.77,40.79846898]
[1735666655399,40.79846898,195.82,195.75,40.79846898]
[1735666655729,40.79846898,195.81,195.74,40.79846898]
[1735666655926,40.79846898,195.83,195.75,40.79846898]
[1735666656095,40.79846898,195.86,195.78,40.79846898]
[1735666656300,40.79846898,195.87,195.79,40.79846898]
[1735666656517,40.79846898,195.84,195.77,1.5929]
[1735666656726,40.79846898,195.83,195.77,1.5929]
[1735666657303,3.32928802,195.82,195.77,1.5929]
[1735666658807,1.28049539,195.81,195.77,1.5929]
[1735666659410,1.28049539,195.8,195.77,1.5929]
[1735666659603,42.07896437,195.8,195.77,1.5929]
[1735666659803,40.79846898,195.78,195.7,1.5929]
[1735666660022,40.79846898,195.74,195.7,1.5929]
[1735666660225,40.79846898,195.73,195.7,1.5929]
[1735666660612,40.79846898,195.74,195.7,1.5929]
[1735666660914,40.79846898,195.76,195.7,1.5929]
[1735666661107,40.79846898,195.78,195.71,40.79846898]
[1735666661742,1.28072822,195.75,195.71,40.79846898]
[1735666662042,42.0791972,195.75,195.7,1.5929]
[1735666662209,40.79846898,195.71,195.65,6.0341]
[1735666662539,40.79846898,195.7,195.65,6.0341]
[1735666663048,40.79846898,195.66,195.64,1.6641]
[1735666663336,40.79846898,195.65,195.59,6.2213]
[1735666663510,40.79846898,195.63,195.59,6.2213]
[1735666664017,40.79846898,195.64,195.59,6.2213]
[1735666664626,40.79846898,195.61,195.57,1.6641]
[1735666664828,40.79846898,195.58,195.54,6.2213]
[1735666665143,40.79846898,195.57,195.54,6.2213]
[1735666665709,21.84337055,195.69,195.54,6.2213]
[1735666665710,40.79846898,195.59,195.54,6.2213]
[1735666665934,40.79846898,195.63,195.55,40.79846898]
[1735666666139,40.79846898,195.61,195.54,47.01976898]
[1735666666345,40.79846898,195.63,195.55,40.79846898]
[1735666666641,40.79846898,195.62,195.54,47.01976898]
[1735666666939,40.79846898,195.64,195.57,40.79846898]
[1735666667119,40.79846898,195.65,195.58,40.79846898]
[1735666667326,17.1196,195.81,195.63,40.79846898]
[1735666667544,40.79846898,195.68,195.62,1.6641]
[1735666667735,40.79846898,195.65,195.62,1.6641]
[1735666668416,40.79846898,195.64,195.62,1.6641]
[1735666668615,40.79846898,195.63,195.56,40.79846898]
[1735666668826,40.79846898,195.62,195.56,1.6641]
[1735666669014,40.79846898,195.6,195.56,1.6641]
[1735666669444,40.79846898,195.61,195.56,1.6641]
[1735666669746,40.79846898,195.58,195.56,1.6641]
[1735666669925,40.79846898,195.57,195.5,40.79846898]
[1735666670126,40.79846898,195.57,195.49,42.46256898]
[1735666670511,40.79846898,195.57,195.5,40.79846898]
[1735666670714,40.79846898,195.51,195.38,7.8854]
[1735666670950,40.79846898,195.46,195.39,40.79846898]
[1735666671122,40.79846898,195.46,195.39,12.7943]
[1735666671440,40.79846898,195.46,195.42,20.0]
[1735666671646,40.79846898,195.46,195.39,12.7943]
[1735666671844,40.79846898,195.5,195.38,7.8854]
[1735666672015,40.79846898,195.44,195.38,7.8854]
[1735666672214,40.79846898,195.43,195.38,7.8854]
[1735666672616,40.79846898,195.42,195.38,1.6641]
[1735666672819,40.79846898,195.45,195.38,42.46256898]
[1735666673146,40.79846898,195.46,195.39,40.79846898]
[1735666673529,40.79846898,195.45,195.38,55.25786898]
[1735666673956,40.79846898,195.43,195.38,1.6641]
[1735666674320,40.79846898,195.4,195.38,1.6641]
[1735666674526,38.73846898,195.4,195.38,1.6641]
[1735666674827,40.79846898,195.4,195.38,1.6641]
[1735666675226,40.79846898,195.39,195.33,6.2499]
[1735666675417,40.79846898,195.37,195.33,6.2499]
[1735666675617,40.79846898,195.38,195.33,6.2499]
[1735666676131,40.79846898,195.37,195.33,6.2499]
[1735666676527,40.79846898,195.36,195.33,6.2499]
[1735666677127,40.79846898,195.36,195.27,20.78648926]
[1735666677128,40.79846898,195.34,195.27,20.78648926]
[1735666677434,40.79846898,195.28,195.27,20.78648926]
[1735666677824,40.79846898,195.28,195.06,1.6455]
[1735666678034,40.79846898,195.14,195.07,12.8159]
[1735666678254,40.79846898,195.13,195.07,12.8159]
[1735666678639,40.79846898,195.09,194.92,10.0]
[1735666678959,40.79846898,195.08,194.99,40.79846898]
[1735666679326,40.79846898,195.1,194.98,5.0]
[1735666679530,40.79846898,195.12,195.04,40.79846898]
[1735666679728,47.9081584,195.21,195.1,40.79846898]
[1735666679942,40.79846898,195.25,195.15,40.79846898]
[1735666680147,40.79846898,195.25,195.17,40.79846898]
[1735666680331,40.79846898,195.23,195.15,40.79846898]
[1735666680537,2.42485377,195.33,195.21,40.79846898]
[1735666680747,40.79846898,195.32,195.23,40.79846898]
[1735666680960,40.79846898,195.3,195.21,40.79846898]
[1735666681127,40.79846898,195.28,195.21,40.79846898]
[1735666681460,40.79846898,195.28,195.13,12.8114]
[1735666681461,40.79846898,195.23,195.15,40.79846898]
[1735666681749,40.79846898,195.21,195.13,53.60986898]
[1735666681951,40.79846898,195.26,195.17,40.79846898]
[1735666682423,40.79846898,195.24,195.17,40.79846898]
[1735666682626,40.79846898,195.24,195.12,23.776884]
[1735666682848,40.79846898,195.24,195.16,40.79846898]
[1735666683055,40.79846898,195.3,195.2,40.79846898]
[1735666683257,40.79846898,195.34,195.25,40.79846898]
[1735666683435,40.79846898,195.34,195.27,40.79846898]
[1735666683634,40.79846898,195.36,195.29,40.79846898]
[1735666684061,40.79846898,195.4,195.31,40.79846898]
[1735666684350,40.79846898,195.38,195.31,40.79846898]
[1735666684562,20.510512,195.39,195.31,40.79846898]
[1735666684742,40.79846898,195.4,195.31,40.79846898]
[1735666684938,40.29846898,195.4,195.31,40.79846898]
[1735666685156,40.79846898,195.43,195.34,40.79846898]
[1735666685450,61.30303798,195.46,195.39,40.79846898]
[1735666685836,40.79846898,195.46,195.4,40.79846898]
[1735666686039,61.29879098,195.5,195.42,40.79846898]
[1735666686353,40.79846898,195.55,195.4,40.79846898]
[1735666686542,40.79846898,195.47,195.35,28.776884]
[1735666686745,40.79846898,195.47,195.39,40.79846898]
[1735666686943,4.88512077,195.48,195.31,20.0]
[1735666687137,6.20941316,195.46,195.38,40.79846898]
[1735666687338,40.79846898,195.47,195.38,40.79846898]
[1735666687538,40.79846898,195.47,195.4,40.79846898]
[1735666687854,20.492766,195.57,195.41,40.79846898]
[1735666687855,40.79846898,195.49,195.41,40.79846898]
[1735666688027,40.79846898,195.47,195.39,40.79846898]
[1735666688231,40.79846898,195.47,195.31,23.776884]
[1735666688232,40.79846898,195.51,195.43,40.79846898]
[1735666688461,40.79846898,195.53,195.45,40.79846898]
[1735666688635,40.79846898,195.5,195.43,40.79846898]
[1735666688837,40.79846898,195.51,195.43,40.79846898]
[1735666689142,40.79846898,195.54,195.46,40.79846898]
[1735666689973,40.79846898,195.51,195.43,40.79846898]
[1735666690131,40.79846898,195.51,195.44,40.79846898]
[1735666690331,40.79846898,195.53,195.44,40.79846898]
[1735666690541,40.79846898,195.53,195.46,40.79846898]
[1735666690950,5.86244243,195.62,195.5,40.79846898]
[1735666690951,40.79846898,195.57,195.5,40.79846898]
[1735666691136,40.79846898,195.59,195.52,40.79846898]
[1735666691462,40.79846898,195.61,195.54,40.79846898]
[1735666691759,61.28370498,195.64,195.56,40.79846898]
[1735666691970,40.79846898,195.63,195.55,40.79846898]
[1735666692145,40.79846898,195.65,195.56,40.79846898]
[1735666692369,40.79846898,195.65,195.5,40.79846898]
[1735666692370,40.79846898,195.67,195.6,40.79846898]
[1735666692659,40.79846898,195.69,195.62,40.79846898]
[1735666693170,40.79846898,195.69,195.61,40.79846898]
[1735666694632,40.79846898,195.62,195.42,12.6587]
[1735666694837,40.79846898,195.6,195.52,40.79846898]
[1735666695040,40.79846898,195.61,195.53,40.79846898]
[1735666695262,40.79846898,195.61,195.54,40.79846898]
[1735666695435,40.79846898,195.62,195.54,40.79846898]
[1735666695636,40.79846898,195.62,195.43,30.5846]
[1735666695637,40.79846898,195.63,195.55,40.79846898]
[1735666695836,40.79846898,195.64,195.57,40.79846898]
[1735666696059,40.79846898,195.67,195.6,40.79846898]
[1735666696247,40.79846898,195.68,195.61,40.79846898]
[1735666696442,20.476869,195.72,195.58,40.79846898]
[1735666696443,40.79846898,195.66,195.58,40.79846898]
[1735666696643,40.79846898,195.69,195.62,40.79846898]
[1735666696866,40.79846898,195.7,195.62,40.79846898]
[1735666697047,40.79846898,195.68,195.61,40.79846898]
[1735666697251,40.79846898,195.68,195.6,40.79846898]
[1735666697452,40.79846898,195.67,195.59,40.79846898]
[1735666697962,40.79846898,195.66,195.58,48.68426898]
[1735666698163,40.79846898,195.68,195.6,40.79846898]
[1735666698469,40.79846898,195.7,195.62,40.79846898]
[1735666699150,20.47742,195.72,195.65,40.79846898]
[1735666699352,40.79846898,195.74,195.66,40.79846898]
[1735666699935,2.99128151,195.71,195.7,40.79846898]
[1735666700352,2.99128151,195.71,195.6,40.79846898]
[1735666700560,12.769,195.79,195.58,7.8858]
[1735666700561,40.79846898,195.69,195.62,40.79846898]
[1735666700868,40.79846898,195.72,195.59,12.7818]
[1735666701035,40.79846898,195.72,195.65,40.79846898]
[1735666701241,40.79846898,195.74,195.67,40.79846898]
[1735666701550,40.79846898,195.75,195.67,40.79846898]
[1735666701738,6.38342282,195.78,195.68,40.79846898]
[1735666701942,40.79846898,195.75,195.68,40.79846898]
[1735666702448,40.79846898,195.77,195.7,40.79846898]
[1735666702649,40.79846898,195.78,195.66,20.0]
[1735666702969,40.79846898,195.84,195.77,40.79846898]
[1735666703159,40.79846898,195.83,195.76,40.79846898]
[1735666703359,12.7642,195.86,195.71,7.8858]
[1735666703539,40.79846898,195.75,195.71,7.8858]
[1735666703748,40.79846898,195.72,195.65,47.02486898]
[1735666703953,40.79846898,195.69,195.65,6.2264]
[1735666704160,40.79846898,195.67,195.65,6.2264]
[1735666704555,40.79846898,195.67,195.63,1.6594]
[1735666704753,40.79846898,195.65,195.63,1.6594]
[1735666704973,40.79846898,195.65,195.59,6.2264]
[1735666705179,5.11623189,195.75,195.59,47.02486898]
[1735666705373,40.79846898,195.68,195.61,40.79846898]
[1735666706154,40.79846898,195.69,195.61,40.79846898]
[1735666706551,40.79846898,195.7,195.63,40.79846898]
[1735666706769,40.79846898,195.69,195.62,40.79846898]
[1735666708382,40.79846898,195.65,195.59,6.2264]
[1735666708565,40.79846898,195.62,195.59,6.2264]
[1735666708766,40.79846898,195.61,195.56,1.6594]
[1735666708979,40.79846898,195.6,195.56,1.6594]
[1735666709174,40.79846898,195.64,195.56,62.45786898]
[1735666709377,40.79846898,195.64,195.57,40.79846898]
[1735666709672,40.79846898,195.65,195.58,60.79846898]
[1735666709882,40.79846898,195.69,195.61,40.79846898]
[1735666710087,40.79846898,195.7,195.63,40.79846898]
[1735666710257,40.79846898,195.69,195.62,40.79846898]
[1735666710454,6.38342282,195.77,195.57,12.7831]
[1735666710455,40.79846898,195.66,195.59,40.79846898]
[1735666710680,40.79846898,195.67,195.6,40.79846898]
[1735666711073,40.79846898,195.69,195.62,40.79846898]
[1735666712191,40.79846898,195.7,195.63,40.79846898]
[1735666713575,40.79846898,195.69,195.62,40.79846898]
[1735666713770,40.79846898,195.7,195.63,40.79846898]
[1735666714078,40.79846898,195.68,195.61,40.79846898]
[1735666714787,40.79846898,195.71,195.64,40.79846898]
[1735666715087,40.79846898,195.72,195.65,40.79846898]
[1735666715302,40.79846898,195.76,195.69,40.79846898]
[1735666715465,9.3518,195.88,195.66,6.6156]
[1735666715466,40.79846898,195.71,195.66,6.6156]
[1735666715865,40.79846898,195.69,195.66,6.6156]
[1735666716288,40.79846898,195.7,195.66,6.6156]
[1735666716897,40.79846898,195.69,195.66,6.6156]
[1735666717068,40.79846898,195.7,195.66,6.6156]
[1735666718562,12.7692,195.79,195.56,1.6594]
[1735666718563,40.79846898,195.69,195.62,40.79846898]
[1735666718778,40.79846898,195.65,195.6,6.6156]
[1735666718978,40.79846898,195.61,195.56,1.6594]
[1735666719175,40.79846898,195.7,195.54,6.6156]
[1735666719176,40.79846898,195.59,195.54,6.6156]
[1735666719383,40.79846898,195.58,195.51,40.79846898]
[1735666719689,40.79846898,195.57,195.5,40.79846898]
[1735666720188,40.79846898,195.56,195.49,42.34306898]
[1735666720387,40.79846898,195.54,195.49,1.5446]
[1735666720768,40.79846898,195.53,195.49,1.5446]
[1735666720965,40.79846898,195.54,195.49,1.5446]
[1735666721877,40.79846898,195.53,195.45,40.79846898]
[1735666722084,40.79846898,195.49,195.41,42.42866898]
[1735666722284,40.79846898,195.48,195.41,42.42866898]
[1735666722616,40.79846898,195.46,195.41,1.6302]
[1735666722778,40.79846898,195.44,195.37,40.79846898]
[1735666723101,40.79846898,195.39,195.35,1.6302]
[1735666723599,40.79846898,195.38,195.33,6.1854]
[1735666723970,40.79846898,195.4,195.33,46.98386898]
[1735666724172,40.79846898,195.39,195.33,6.1854]
[1735666724400,40.79846898,195.36,195.29,40.79846898]
[1735666724792,40.79846898,195.36,195.28,42.42866898]
[1735666724981,40.79846898,195.35,195.28,42.42866898]
[1735666725294,40.79846898,195.37,195.3,40.79846898]
[1735666725998,40.79846898,195.42,195.35,40.79846898]
[1735666726172,10.0,195.61,195.41,40.79846898]
[1735666726507,40.79846898,195.48,195.41,40.79846898]
[1735666726723,12.784,195.56,195.41,40.79846898]
[1735666727007,3.00799867,195.49,195.41,40.79846898]
[1735666727386,40.79846898,195.47,195.4,40.79846898]
[1735666727590,40.79846898,195.46,195.39,40.79846898]
[1735666727770,43.80646765,195.48,195.4,40.79846898]
[1735666727976,43.80646765,195.48,195.41,40.79846898]
[1735666728179,40.79846898,195.5,195.43,40.79846898]
[1735666728481,40.79846898,195.48,195.4,46.98386898]
[1735666728676,40.79846898,195.48,195.41,40.79846898]
[1735666729203,40.79846898,195.48,195.4,46.98386898]
[1735666729496,40.79846898,195.48,195.41,40.79846898]
[1735666729705,40.79846898,195.47,195.4,46.98386898]
[1735666730394,20.495247,195.55,195.4,46.98386898]
[1735666730395,40.79846898,195.48,195.41,40.79846898]
[1735666730776,40.79846898,195.49,195.42,40.79846898]
[1735666730971,20.493778,195.56,195.4,6.1854]
[1735666731171,40.79846898,195.48,195.41,40.79846898]
[1735666731601,40.79846898,195.51,195.43,40.79846898]
[1735666731901,3.02382161,195.47,195.43,40.79846898]
[1735666732515,3.02382161,195.47,195.44,40.79846898]
[1735666732716,10.0,195.66,195.46,40.79846898]
[1735666732999,40.79846898,195.6,195.53,40.79846898]
[1735666733778,1.28222881,195.59,195.53,40.79846898]
[1735666733975,45.1046816,195.59,195.52,40.79846898]
[1735666734478,43.82245279,195.59,195.52,40.79846898]
[1735666734692,3.02398381,195.59,195.53,40.79846898]
[1735666734879,3.02398381,195.58,195.53,40.79846898]
[1735666735511,3.02398381,195.57,195.56,40.79846898]
[1735666736581,1.35738381,195.65,195.56,40.79846898]
[1735666736890,40.79846898,195.7,195.63,40.79846898]
[1735666737311,40.79846898,195.66,195.59,40.79846898]
[1735666737481,40.79846898,195.65,195.58,40.79846898]
[1735666737802,40.79846898,195.65,195.55,8.2586]
[1735666737803,40.79846898,195.64,195.57,40.79846898]
[1735666737974,40.79846898,195.68,195.61,40.79846898]
[1735666738180,42.07980343,195.69,195.62,40.79846898]
[1735666738395,1.28133445,195.67,195.62,40.79846898]
[1735666738908,40.79846898,195.66,195.59,40.79846898]
[1735666739079,40.79846898,195.7,195.56,40.79846898]
[1735666739284,40.79846898,195.7,195.55,8.2586]
[1735666739285,40.79846898,195.61,195.55,6.634]
[1735666739786,40.79846898,195.57,195.5,40.79846898]
[1735666740198,40.79846898,195.58,195.5,40.79846898]
[1735666740579,40.79846898,195.57,195.5,40.79846898]
[1735666740981,40.79846898,195.56,195.49,6.634]
[1735666741221,40.79846898,195.52,195.45,40.79846898]
[1735666741420,40.79846898,195.52,195.43,6.634]
[1735666741715,40.79846898,195.47,195.4,40.79846898]
[1735666741913,40.79846898,195.46,195.39,40.79846898]
[1735666742204,45.79846898,195.5,195.37,47.43246898]
[1735666742415,40.79846898,195.42,195.35,40.79846898]
[1735666742708,40.79846898,195.41,195.34,40.79846898]
[1735666743093,40.79846898,195.4,195.33,40.79846898]
[1735666743291,40.79846898,195.38,195.31,47.43246898]
[1735666743487,40.79846898,195.37,195.29,40.79846898]
[1735666743816,40.79846898,195.33,195.26,40.79846898]
[1735666744016,40.79846898,195.3,195.25,6.634]
[1735666744504,40.79846898,195.31,195.25,6.634]
[1735666745017,40.79846898,195.3,195.25,6.634]
[1735666745205,22.7953,195.39,195.25,6.634]
[1735666745206,40.79846898,195.28,195.25,6.634]
[1735666745411,40.79846898,195.3,195.25,6.634]
[1735666745726,40.79846898,195.31,195.25,6.634]
[1735666746090,40.79846898,195.3,195.25,6.634]
[1735666746294,40.79846898,195.29,195.25,6.634]
[1735666746497,45.79846898,195.4,195.21,40.79846898]
[1735666746498,40.79846898,195.28,195.21,40.79846898]
[1735666746921,40.79846898,195.29,195.22,40.79846898]
[1735666747097,40.79846898,195.34,195.27,40.79846898]
[1735666747292,40.79846898,195.37,195.3,40.79846898]
[1735666748005,14.19282718,195.45,195.2,77.38265298]
[1735666748006,40.79846898,195.38,195.31,40.79846898]
[1735666748206,9.3518,195.47,195.29,40.79846898]
[1735666748404,40.79846898,195.33,195.27,40.79846898]
[1735666748609,40.79846898,195.3,195.23,40.79846898]
[1735666749023,40.79846898,195.31,195.24,40.79846898]
[1735666749404,40.79846898,195.4,195.23,40.79846898]
[1735666749405,40.79846898,195.3,195.23,40.79846898]
[1735666749609,40.79846898,195.3,195.24,40.79846898]
[1735666749805,40.79846898,195.31,195.24,40.79846898]
[1735666750016,40.79846898,195.3,195.23,40.79846898]
[1735666750412,40.79846898,195.3,195.24,40.79846898]
[1735666750815,40.79846898,195.28,195.22,40.79846898]
[1735666750996,40.79846898,195.3,195.23,40.79846898]
[1735666751195,10.0,195.39,195.19,47.43246898]
[1735666751425,40.79846898,195.26,195.19,47.43246898]
[1735666751726,40.79846898,195.26,195.2,40.79846898]
[1735666751895,40.79846898,195.24,195.19,6.634]
[1735666752096,40.79846898,195.3,195.13,6.634]
[1735666752097,40.79846898,195.2,195.13,6.634]
[1735666752290,40.79846898,195.15,195.13,6.634]
[1735666752495,40.79846898,195.14,195.1,1.6246]
[1735666752717,40.79846898,195.17,195.1,1.6246]
[1735666752917,40.79846898,195.15,195.1,1.6246]
[1735666753116,40.79846898,195.18,195.11,40.79846898]
[1735666753309,40.79846898,195.2,195.12,40.79846898]
[1735666753612,40.79846898,195.18,195.1,55.23676898]
[1735666753815,40.79846898,195.19,195.11,40.79846898]
[1735666754015,40.79846898,195.18,195.11,40.79846898]
[1735666754317,40.79846898,195.19,195.12,40.79846898]
[1735666754523,40.79846898,195.17,195.1,1.6246]
[1735666754722,40.79846898,195.17,195.01,5.0]
[1735666754723,40.79846898,195.12,194.9,6.634]
[1735666754898,40.79846898,195.07,194.92,10.0]
[1735666755102,8.25583912,195.19,195.03,40.79846898]
[1735666755322,0.72371982,195.18,195.03,40.79846898]
[1735666755524,40.79846898,195.09,195.01,40.79846898]
[1735666755894,40.79846898,195.09,194.97,5.0]
[1735666756208,40.79846898,195.12,195.04,40.79846898]
[1735666756543,40.79846898,195.11,195.03,40.79846898]
[1735666756723,4.95342282,195.19,194.91,51.3056]
[1735666756724,40.79846898,195.08,195.0,40.79846898]
[1735666757032,40.79846898,195.09,195.02,40.79846898]
[1735666757346,40.79846898,195.07,195.0,40.79846898]
[1735666757549,40.79846898,195.1,195.02,40.79846898]
[1735666757845,8.25583912,195.18,195.02,23.776884]
[1735666758148,40.79846898,195.14,195.06,40.79846898]
[1735666758317,40.79846898,195.15,195.07,40.79846898]
[1735666758639,40.79846898,195.19,195.12,40.79846898]
[1735666758845,40.79846898,195.2,195.13,40.79846898]
[1735666759130,40.79846898,195.22,195.15,40.79846898]
[1735666759309,53.59966898,195.3,195.16,40.79846898]
[1735666759310,40.79846898,195.24,195.16,40.79846898]
[1735666759513,47.36966958,195.3,195.1,12.8133]
[1735666759715,40.79846898,195.18,195.11,40.79846898]
[1735666759914,40.79846898,195.13,195.05,19.2275]
[1735666760118,40.79846898,195.11,195.05,6.4105]
[1735666760433,40.79846898,195.06,195.03,1.5152]
[1735666760637,40.79846898,195.04,194.98,6.4105]
[1735666760931,40.79846898,195.04,194.96,40.79846898]
[1735666761141,40.79846898,195.02,194.94,40.79846898]
[1735666761326,40.79846898,195.1,194.92,40.79846898]
[1735666761327,40.79846898,194.99,194.92,40.79846898]
[1735666761531,40.79846898,194.95,194.78,6.4105]